[Event "30th NATO Chess-ch 2019"]
[Site "Berlin"]
[Date "2019.09.14"]
[Round "1.1"]
[White "Ermalis, Rytis"]
[Black "Pavlidis, Antonios"]
[Result "0-1"]
[ECO "A69"]
[WhiteElo "1960"]
[BlackElo "2550"]
[Annotator "ChessBase"]
[PlyCount "98"]
[EventDate "2019.09.16"]
[EventType "swiss"]
[EventCountry "GER"]
[SourceTitle "playchess.com"]
[Source "ChessBase"]
[SourceQuality "1"]
[TimeControl "40/7200:1800"]

1. c4 {[%emt 1:59:50]} Nf6 {[%emt 1:59:50]} 2. Nc3 {[%emt 1:59:15]} g6 {[%emt 1:58:37]} 3. e4 {[%emt 1:58:31]} d6 {[%emt 1:58:31]} 4. d4 {[%emt 1:57:55]} Bg7 {[%emt 1:58:07]} 5. f4 {[%emt 1:57:32]} c5 {[%emt 1:56:40]} 6. d5 {[%emt 1:55:53]} O-O {[%emt 1:55:53]} 7. Nf3 {[%emt 1:55:22]} e6 {[%emt 1:55:22]} 8. Be2 {[%emt 1:55:09]} exd5 {[%emt 1:55:09]} 9. cxd5 {[%emt 1:54:42]} Re8 {[%emt 1:54:42]} 10. Nd2 {[%emt 1:54:17]} Bd7 {[%emt 1:54:17]} 11. a4 {[%emt 1:51:31]} Na6 {[%emt 1:51:45]} 12. O-O {[%emt 1:51:29]} Rc8 {[%emt 1:51:29]} 13. e5 {[%emt 1:41:45]} dxe5 {[%emt 1:41:45]} 14. fxe5 {[%emt 1:37:38]} Rxe5 {[%emt 1:46:45]} 15. Nc4 {[%emt 1:36:20]} Re8 {[%emt 1:36:20]} 16. Bf4 {[%emt 1:23:09]} Ne4 {[%emt 1:17:57]} 17. Nxe4 {[%emt 1:17:57]} Rxe4 {[%emt 1:17:48]} 18. Bd3 {[%emt 0:58:29]} Rd4 {[%emt 0:58:29]} 19. Qf3 {[%emt 0:50:16]} Bc6 {[%emt 0:45:20]} 20. dxc6 {[%emt 0:45:20]} Rxd3 {[%emt 0:41:34]} 21. Be3 {[%emt 0:32:01]} Qc7 {[%emt 0:32:01]} 22. cxb7 {[%emt 0:36:40]} Re8 {[%emt 0:17:50]} 23. Ra3 {[%emt 0:14:43]} Rd7 24. Bf4 {[%emt 0:09:59]} Qxb7 {[%emt 0:16:47]} 25. Qxb7 {[%emt 0:07:57]} Rxb7 {[%emt 0:16:40]} 26. Nd6 {[%emt 0:07:37]} Bxb2 {[%emt 0:07:37]} 27. Raf3 {[%emt 0:07:16]} Bd4+ {[%emt 0:15:21]} 28. Kh1 {[%emt 0:07:01]} Rbe7 {[%emt 0:13:58]} 29. Nxe8 {[%emt 0:13:58]} Rxe8 {[%emt 0:05:46]} 30. Bd2 {[%emt 0:05:02]} Re7 {[%emt 0:12:03]} 31. Bc3 {[%emt 0:12:03]} Nb4 {[%emt 0:11:21]} 32. Re1 {[%emt 0:01:53]} Rb7 {[%emt 0:10:18]} 33. Re8+ {[%emt 0:01:38]} Kg7 {[%emt 0:10:12]} 34. h3 {[%emt 0:10:12]} h5 {[%emt 0:01:19]} 35. Rd8 {[%emt 0:08:37]} Nc6 {[%emt 0:08:08]} 36. Rd6 {[%emt 0:00:36]} Rb1+ {[%emt 0:06:59]} 37. Kh2 {[%emt 0:06:59]} Ne5 {[%emt 0:06:50]} 38. Bxd4 {[%emt 0:00:23]} cxd4 {[%emt 0:06:41]} 39. Rf2 {[%emt 0:06:41]} d3 {[%emt 0:05:47]} 40. Rd5 {[%emt 0:00:01]} Re1 {[%emt 0:00:01]} 41. Kg3 {[%emt 0:30:30]} Re4 {[%emt 0:23:08]} 42. Rd2 {[%emt 0:25:25]} Kf6 {[%emt 0:24:45]} 43. Ra5 {[%emt 0:13:59]} Rd4 {[%emt 0:13:59]} 44. Rxa7 {[%emt 7:12:17]} h4+ {[%emt 0:08:54]} 45. Kf2 {[%emt 0:13:35]} Nc4 {[%emt 0:12:59]} 46. Rd1 {[%emt 0:07:32]} Rf4+ {[%emt 0:07:32]} 47. Ke1 {[%emt 0:06:32]} Re4+ {[%emt 0:11:01]} 48. Kf2 {[%emt 0:06:21]} Re2+ {[%emt 0:10:17]} 49. Kf1 {[%emt 0:10:17]} Ne3+ {[%emt 0:10:05] --- Ke5+ --- Nc4} 0-1

[Event "30th NATO Chess-ch 2019"]
[Site "Berlin"]
[Date "2019.09.14"]
[Round "1.2"]
[White "Helbig, Mark"]
[Black "Kruit, Erik"]
[Result "1-0"]
[ECO "A07"]
[WhiteElo "2332"]
[BlackElo "1941"]
[Annotator "NA"]
[PlyCount "125"]
[EventDate "2019.09.16"]
[EventType "swiss"]
[EventCountry "GER"]
[SourceTitle "playchess.com"]
[Source "ChessBase"]
[SourceQuality "1"]
[TimeControl "40/7200:1800"]

1. Nf3 d5 {[%emt 1:59:47]} 2. g3 {[%emt 1:59:35]} Nc6 {[%emt 1:58:50]} 3. Bg2 {[%emt 1:57:27]} e5 {[%emt 1:58:26]} 4. d3 {[%emt 1:58:26]} Bf5 {[%emt 1:57:14]} 5. O-O {[%emt 1:55:40]} Nge7 {[%emt 1:55:40]} 6. Nbd2 {[%emt 1:54:19]} Qd7 {[%emt 1:55:04]} 7. c4 {[%emt 1:43:04]} d4 {[%emt 1:51:31]} 8. b4 {[%emt 1:51:31]} Ng6 {[%emt 1:50:33]} 9. b5 {[%emt 1:41:19]} Nd8 {[%emt 1:50:06]} 10. Re1 {[%emt 1:50:06]} Bd6 {[%emt 1:48:14]} 11. Ng5 {[%emt 1:48:14]} c5 {[%emt 1:25:52]} 12. bxc6 {[%emt 1:24:07]} Nxc6 {[%emt 1:46:06]} 13. Rb1 {[%emt 1:22:54]} O-O {[%emt 1:45:32]} 14. Qa4 {[%emt 1:45:32]} Rac8 {[%emt 1:43:37]} 15. Nge4 {[%emt 1:17:57]} Be7 {[%emt 1:38:08]} 16. Ba3 {[%emt 1:38:08]} b6 {[%emt 1:31:03]} 17. Bxe7 {[%emt 0:59:51]} Ngxe7 {[%emt 0:59:51]} 18. Qa3 {[%emt 0:59:09]} Rfd8 {[%emt 1:29:19]} 19. c5 {[%emt 0:54:40]} Nd5 {[%emt 0:54:40]} 20. Nd6 {[%emt 0:51:13]} Nc3 {[%emt 1:18:30]} 21. Nxc8 {[%emt 0:49:39]} Nxb1 {[%emt 1:18:14]} 22. Rxb1 {[%emt 0:48:56]} Rxc8 {[%emt 1:11:49]} 23. cxb6 {[%emt 1:11:49]} axb6 {[%emt 1:08:06]} 24. Rxb6 {[%emt 0:42:31]} Be6 {[%emt 0:42:31]} 25. Bxc6 {[%emt 1:06:37]} Rxc6 {[%emt 1:05:24]} 26. Qa8+ {[%emt 1:05:24]} Rc8 {[%emt 0:33:32]} 27. Rb8 {[%emt 0:33:13]} f6 {[%emt 1:03:34]} 28. Ne4 {[%emt 0:31:29]} Qc7 {[%emt 1:01:55]} 29. Rxc8+ {[%emt 0:29:50]} Qxc8 {[%emt 0:56:27]} 30. Qxc8+ {[%emt 0:56:27]} Bxc8 {[%emt 0:56:21]} 31. Nc5 {[%emt 0:56:21]} Kf8 {[%emt 0:24:37]} 32. e3 {[%emt 0:55:21]} Ke7 {[%emt 0:24:20]} 33. exd4 {[%emt 0:19:43]} exd4 {[%emt 0:19:43]} 34. Kf1 {[%emt 0:53:45]} Kd6 {[%emt 0:18:36]} 35. Nb3 {[%emt 0:17:57]} Kd5 {[%emt 0:48:48]} 36. f4 {[%emt 0:15:34]} Bd7 {[%emt 0:45:38]} 37. Ke2 {[%emt 0:15:05]} Bg4+ {[%emt 0:15:05]} 38. Kd2 {[%emt 0:14:46]} Bd7 {[%emt 0:44:56]} 39. h4 {[%emt 0:10:19]} h6 {[%emt 0:10:19]} 40. Na5 {[%emt 0:44:02]} Kc5 {[%emt 0:42:26]} 41. Nb3+ {[%emt 0:07:04]} Kd5 {[%emt 0:07:04]} 42. a3 Ba4 43. Na5 {[%emt 1:12:15]} Kc5 {[%emt 0:28:15]} 44. Nc4 {[%emt 0:25:56]} Bb5 {[%emt 1:08:41]} 45. Nb2 {[%emt 1:08:41]} Bd7 {[%emt 1:07:59]} 46. Kc2 {[%emt 0:22:17]} Be6 {[%emt 1:07:19]} 47. Nc4 {[%emt 1:07:19]} Bf5 {[%emt 0:21:47]} 48. a4 {[%emt 0:21:28]} Kb4 {[%emt 1:04:45]} 49. a5 {[%emt 0:20:22]} Kc5 {[%emt 0:20:22]} 50. a6 {[%emt 0:53:08]} Bc8 {[%emt 0:52:27]} 51. a7 {[%emt 0:19:24]} Bb7 {[%emt 0:52:23]} 52. Na5 {[%emt 0:17:42]} Bd5 {[%emt 0:17:42]} 53. Nb3+ {[%emt 0:16:52]} Kb6 {[%emt 0:16:52]} 54. Nxd4 {[%emt 0:50:47]} Kxa7 {[%emt 0:50:02]} 55. Nf5 {[%emt 0:16:09]} Kb6 {[%emt 0:48:30]} 56. Nxg7 {[%emt 0:48:30]} Bf3 {[%emt 0:15:15]} 57. Ne8 {[%emt 0:12:58]} f5 {[%emt 0:12:58]} 58. Nd6 {[%emt 0:12:51]} Bg4 {[%emt 0:12:51]} 59. Nf7 {[%emt 0:45:36]} h5 {[%emt 0:12:20]} 60. Ne5 {[%emt 0:45:29]} Bh3 {[%emt 0:12:15]} 61. Kd2 {[%emt 0:10:50]} Kc5 {[%emt 0:44:31]} 62. Ke3 {[%emt 0:44:31]} Bg2 {[%emt 0:10:44]} 63. Nd7+ {[%emt 0:43:50]} 1-0

[Event "30th NATO Chess-ch 2019"]
[Site "Berlin"]
[Date "2019.09.14"]
[Round "1.4"]
[White "Binder, Tamas"]
[Black "Ward, Julian T"]
[Result "1-0"]
[ECO "D10"]
[WhiteElo "2261"]
[BlackElo "2155"]
[Annotator "NA"]
[PlyCount "95"]
[EventDate "2019.09.16"]
[EventType "swiss"]
[EventCountry "GER"]
[SourceTitle "playchess.com"]
[Source "ChessBase"]
[SourceQuality "1"]
[TimeControl "40/7200:1800"]

1. d4 {[%emt 2:00:00]} d5 {[%emt 1:59:34]} 2. c4 {[%emt 1:59:41]} c6 {[%emt 1:58:45]} 3. e3 {[%emt 1:58:45]} Nf6 {[%emt 1:59:31]} 4. Nc3 {[%emt 1:59:22]} Nbd7 {[%emt 1:59:22]} 5. Nf3 {[%emt 1:54:03]} dxc4 {[%emt 1:57:39]} 6. Bxc4 {[%emt 1:57:30]} Nb6 {[%emt 1:51:10]} 7. Bb3 {[%emt 1:51:10]} Bg4 {[%emt 1:49:16]} 8. Bxf7+ {[%emt 1:56:31]} Kxf7 {[%emt 1:47:45]} 9. Ne5+ {[%emt 1:47:45]} Ke8 {[%emt 1:47:09]} 10. Nxg4 {[%emt 1:56:18]} Nxg4 {[%emt 1:37:17]} 11. Qxg4 {[%emt 1:54:13]} Qd7 {[%emt 1:54:13]} 12. Qf3 {[%emt 1:53:37]} e6 {[%emt 1:27:50]} 13. O-O {[%emt 1:53:10]} Qf7 14. Qe2 {[%emt 1:51:50]} Be7 {[%emt 1:51:50]} 15. b3 {[%emt 1:18:00]} Qg6 {[%emt 1:14:29]} 16. a4 {[%emt 1:14:29]} Rf8 {[%emt 1:12:04]} 17. Ba3 {[%emt 1:47:33]} Bxa3 {[%emt 1:09:59]} 18. Rxa3 {[%emt 1:09:59]} Nd5 {[%emt 1:08:19]} 19. Nxd5 {[%emt 1:47:12]} exd5 20. b4 {[%emt 1:07:48]} Rf7 {[%emt 1:02:11]} 21. b5 {[%emt 1:46:38]} Qd6 {[%emt 1:00:33]} 22. Rc3 {[%emt 1:45:20]} Rc8 {[%emt 1:44:07]} 23. Rfc1 {[%emt 1:44:07]} Rfc7 {[%emt 0:49:01]} 24. Qc2 {[%emt 1:43:15]} g6 {[%emt 0:47:22]} 25. g3 {[%emt 0:47:22]} Kd7 {[%emt 0:46:06]} 26. Qb3 {[%emt 0:46:06]} Ke7 {[%emt 1:41:33]} 27. bxc6 {[%emt 1:41:20]} bxc6 {[%emt 0:38:25]} 28. Rc5 {[%emt 0:38:25]} Rd7 {[%emt 0:33:26]} 29. Qc2 {[%emt 1:38:55]} Rdc7 {[%emt 0:32:51]} 30. h4 {[%emt 0:32:51]} Qe6 {[%emt 0:27:54]} 31. a5 {[%emt 1:36:59]} Kd7 {[%emt 1:36:59]} 32. Rb1 {[%emt 1:35:57]} Rf8 {[%emt 0:22:08]} 33. a6 {[%emt 0:22:08]} Qf5 {[%emt 0:20:31]} 34. Qxf5+ {[%emt 1:34:44]} Rxf5 {[%emt 0:20:25]} 35. Rb8 {[%emt 0:20:25]} Rf7 {[%emt 0:19:59]} 36. Rc2 {[%emt 1:33:29]} Kd6 {[%emt 0:18:49]} 37. Kg2 {[%emt 1:31:53]} Rfd7 {[%emt 0:17:20]} 38. Kf3 {[%emt 1:31:14]} c5 {[%emt 0:16:29]} 39. dxc5+ {[%emt 1:30:51]} Rxc5 {[%emt 0:16:25]} 40. Rxc5 {[%emt 0:16:25]} Kxc5 {[%emt 1:30:41]} 41. Rb7 {[%emt 1:28:10]} Kc6 {[%emt 0:12:01]} 42. Rxd7 {[%emt 1:27:42]} Kxd7 {[%emt 0:11:58]} 43. Kf4 {[%emt 1:27:25]} h6 {[%emt 0:10:40]} 44. Ke5 {[%emt 1:26:55]} Kc6 {[%emt 0:05:24]} 45. g4 {[%emt 0:05:24]} Kb6 {[%emt 5:11:29]} 46. Kxd5 {[%emt 0:04:46]} Kxa6 {[%emt 0:04:41]} 47. Kc6 {[%emt 1:26:06]} Ka5 {[%emt 0:04:35]} 48. e4 {[%emt 0:04:35]} 1-0

[Event "30th NATO Chess-ch 2019"]
[Site "Berlin"]
[Date "2019.09.14"]
[Round "1.5"]
[White "Free, Graham"]
[Black "Sypien, Mateusz"]
[Result "0-1"]
[ECO "A08"]
[WhiteElo "2138"]
[BlackElo "2243"]
[Annotator "NA"]
[PlyCount "54"]
[EventDate "2019.09.16"]
[EventType "swiss"]
[EventCountry "GER"]
[SourceTitle "playchess.com"]
[Source "ChessBase"]
[SourceQuality "1"]
[TimeControl "40/7200:1800"]

1. e4 {[%emt 1:59:55]} c5 {[%emt 1:59:50]} 2. Nf3 {[%emt 1:59:50]} Nc6 {[%emt 1:59:46]} 3. d3 {[%emt 1:56:34]} g6 {[%emt 1:59:11]} 4. g3 {[%emt 1:56:09]} Bg7 {[%emt 1:58:29]} 5. Bg2 {[%emt 1:58:29]} e6 {[%emt 1:57:36]} 6. O-O {[%emt 1:53:45]} Nge7 {[%emt 1:56:41]} 7. c3 {[%emt 1:48:48]} d5 {[%emt 1:54:21]} 8. Nbd2 {[%emt 1:42:44]} O-O {[%emt 1:52:09]} 9. Ne1 {[%emt 1:33:18]} e5 {[%emt 1:46:53]} 10. exd5 {[%emt 1:46:53]} Nxd5 {[%emt 1:46:45]} 11. Qb3 {[%emt 1:27:16]} Nde7 {[%emt 1:27:16]} 12. Ne4 {[%emt 1:24:50]} Qa5 {[%emt 1:17:48]} 13. Be3 {[%emt 1:17:48]} Be6 {[%emt 1:17:13]} 14. Qc2 {[%emt 1:17:13]} b6 {[%emt 1:15:50]} 15. Nf3 {[%emt 1:08:12]} Rad8 {[%emt 1:14:04]} 16. a3 {[%emt 1:01:50]} Qa6 {[%emt 1:11:38]} 17. Rfd1 {[%emt 1:11:38]} h6 {[%emt 1:08:43]} 18. c4 {[%emt 0:50:28]} Qc8 {[%emt 0:50:28]} 19. Qc1 {[%emt 1:05:09]} Kh7 {[%emt 1:02:02]} 20. b4 {[%emt 0:46:47]} f5 {[%emt 0:58:13]} 21. Nc3 {[%emt 0:46:36]} f4 {[%emt 0:53:48]} 22. gxf4 {[%emt 0:45:45]} exf4 {[%emt 0:45:45]} 23. Bd2 {[%emt 0:53:45]} Bh3 {[%emt 0:40:37]} 24. Bxf4 {[%emt 0:34:55]} Bxg2 {[%emt 0:46:42]} 25. Kxg2 {[%emt 0:46:42]} Qg4+ {[%emt 0:45:22]} 26. Bg3 {[%emt 0:26:36]} Qxf3+ {[%emt 0:45:18]} 27. Kg1 {[%emt 0:26:28]} Rxd3 {[%emt 0:44:38]} 0-1

[Event "30th NATO Chess-ch 2019"]
[Site "Berlin"]
[Date "2019.09.14"]
[Round "1.6"]
[White "Delfino, Luigi"]
[Black "Pirs, Matjaz"]
[Result "0-1"]
[ECO "B21"]
[WhiteElo "2235"]
[BlackElo "2203"]
[Annotator "NA"]
[PlyCount "106"]
[EventDate "2019.09.16"]
[EventType "swiss"]
[EventCountry "GER"]
[SourceTitle "playchess.com"]
[Source "ChessBase"]
[SourceQuality "1"]
[TimeControl "40/7200:1800"]

1. f4 {[%emt 1:59:51]} c5 {[%emt 1:59:21]} 2. e4 {[%emt 1:59:10]} g6 {[%emt 1:58:31]} 3. d4 {[%emt 1:58:45]} cxd4 {[%emt 1:52:24]} 4. Qxd4 {[%emt 1:52:24]} Nf6 {[%emt 1:58:25]} 5. e5 {[%emt 1:57:27]} Nc6 {[%emt 1:51:48]} 6. Qd3 {[%emt 1:55:42]} Ng8 {[%emt 1:55:42]} 7. Bd2 {[%emt 1:53:38]} Nh6 {[%emt 1:53:38]} 8. Bc3 {[%emt 1:46:24]} Bg7 {[%emt 1:46:24]} 9. Nd2 {[%emt 1:44:33]} O-O {[%emt 1:44:33]} 10. O-O-O {[%emt 1:43:01]} d5 {[%emt 1:26:38]} 11. Ndf3 {[%emt 1:26:38]} e6 {[%emt 1:16:00]} 12. h4 {[%emt 1:16:00]} Ng4 {[%emt 1:11:28]} 13. Nh3 {[%emt 1:10:49]} h5 {[%emt 1:00:39]} 14. Be2 {[%emt 1:00:39]} Qe7 {[%emt 1:09:11]} 15. Kb1 {[%emt 0:30:47]} a5 {[%emt 0:24:14]} 16. Nd4 {[%emt 0:24:14]} Nh6 {[%emt 0:52:29]} 17. Ng5 {[%emt 0:47:22]} Nxd4 {[%emt 0:47:22]} 18. Bxd4 {[%emt 0:20:46]} b6 {[%emt 0:17:02]} 19. Bf3 {[%emt 0:34:48]} Ba6 {[%emt 0:34:48]} 20. Qd2 {[%emt 0:16:48]} Rab8 {[%emt 0:13:30]} 21. Rdg1 {[%emt 0:25:19]} Nf5 {[%emt 0:04:57]} 22. g4 {[%emt 0:21:17]} Nxd4 {[%emt 0:04:49]} 23. Qxd4 {[%emt 0:21:02]} f6 {[%emt 0:04:41]} 24. Nxe6 {[%emt 0:18:10]} fxe5 {[%emt 0:03:43]} 25. Qd1 {[%emt 0:03:43]} e4 {[%emt 0:03:25]} 26. Nxf8 {[%emt 0:14:48]} Kxf8 {[%emt 0:14:48]} 27. Be2 {[%emt 0:13:16]} Qb4 {[%emt 0:02:28]} 28. c3 {[%emt 0:12:29]} Bxc3 {[%emt 0:02:22]} 29. Qb3 {[%emt 0:02:22]} Bxe2 {[%emt 0:01:49]} 30. bxc3 {[%emt 0:07:30]} Qxb3+ {[%emt 0:01:35]} 31. axb3 {[%emt 0:07:28]} Bxg4 {[%emt 0:07:28]} 32. Rg3 {[%emt 0:01:27]} Kf7 {[%emt 0:01:25]} 33. Kc2 {[%emt 0:02:44]} Ke6 {[%emt 0:01:24]} 34. Kd2 {[%emt 0:02:05]} Kf5 {[%emt 0:01:05]} 35. Ke3 {[%emt 0:01:11]} Rc8 {[%emt 0:00:59]} 36. Rc1 {[%emt 0:00:49]} b5 {[%emt 0:00:48]} 37. Rg2 {[%emt 0:00:36]} a4 {[%emt 0:00:25]} 38. bxa4 bxa4 {[%emt 0:00:24]} 39. Rb2 {[%emt 0:00:11]} Rc4 {[%emt 0:00:22]} 40. Rb4 {[%emt 0:00:22]} d4+ {[%emt 0:00:12]} 41. Kf2 {[%emt 0:00:12]} e3+ {[%emt 0:00:07]} 42. Ke1 {[%emt 0:30:07]} Rxc3 43. Rxc3 {[%emt 0:28:48]} dxc3 {[%emt 0:29:55]} 44. Rxa4 c2 {[%emt 0:28:45]} 45. Rc4 {[%emt 0:28:02]} Bd1 {[%emt 0:25:52]} 46. Kf1 {[%emt 0:25:52]} Kg4 {[%emt 0:26:45]} 47. f5+ {[%emt 0:21:12]} Kxf5 {[%emt 0:24:02]} 48. Kg2 {[%emt 0:21:03]} Ke5 {[%emt 0:23:15]} 49. Kf1 {[%emt 0:20:42]} Kd5 {[%emt 0:20:42]} 50. Rc7 {[%emt 0:21:38]} Kd4 {[%emt 0:20:20]} 51. Rc8 {[%emt 0:19:06]} Kd3 {[%emt 0:19:06]} 52. Rc7 {[%emt 0:20:59]} c1=Q {[%emt 0:17:58]} 53. Rxc1 {[%emt 0:16:14]} Kd2 {[%emt 0:17:55]} 0-1

[Event "30th NATO Chess-ch 2019"]
[Site "Berlin"]
[Date "2019.09.14"]
[Round "1.7"]
[White "Middaugh, Jon S"]
[Black "Lakos, Nikoletta"]
[Result "0-1"]
[ECO "A53"]
[WhiteElo "1918"]
[BlackElo "2226"]
[Annotator "NA"]
[PlyCount "98"]
[EventDate "2019.09.16"]
[EventType "swiss"]
[EventCountry "GER"]
[SourceTitle "playchess.com"]
[Source "ChessBase"]
[SourceQuality "1"]
[TimeControl "40/7200:1800"]

1. d4 {[%emt 1:59:52]} Nf6 {[%emt 1:59:39]} 2. c4 {[%emt 1:59:39]} d6 {[%emt 1:59:23]} 3. Nc3 {[%emt 1:59:23]} e5 {[%emt 1:59:14]} 4. dxe5 {[%emt 1:57:51]} dxe5 {[%emt 1:57:46]} 5. Qxd8+ {[%emt 1:57:46]} Kxd8 {[%emt 1:57:42]} 6. Bg5 {[%emt 1:57:42]} Be6 {[%emt 1:52:23]} 7. Nf3 {[%emt 1:46:34]} Nbd7 {[%emt 1:46:34]} 8. O-O-O {[%emt 1:44:16]} Kc8 {[%emt 1:51:07]} 9. b3 {[%emt 1:51:07]} Bb4 {[%emt 1:39:55]} 10. Nb1 {[%emt 1:30:49]} Ne4 {[%emt 1:12:18]} 11. Be3 {[%emt 1:30:09]} Bc5 {[%emt 1:07:11]} 12. Bxc5 {[%emt 1:07:11]} Ndxc5 {[%emt 1:06:31]} 13. Rg1 {[%emt 1:06:31]} Nxf2 {[%emt 1:22:44]} 14. Re1 {[%emt 1:20:32]} f6 {[%emt 1:05:13]} 15. Nfd2 {[%emt 1:05:13]} a5 {[%emt 0:44:57]} 16. Nc3 {[%emt 1:13:18]} Ng4 {[%emt 1:13:18]} 17. h3 {[%emt 0:44:11]} Ne3 {[%emt 0:43:58]} 18. Nd1 {[%emt 1:10:00]} Nxf1 {[%emt 0:40:38]} 19. Rgxf1 {[%emt 0:40:38]} c6 {[%emt 0:40:03]} 20. Nc3 {[%emt 1:03:44]} Kc7 {[%emt 0:37:58]} 21. a4 {[%emt 0:37:58]} Rhd8 22. Nce4 Nxe4 {[%emt 0:33:37]} 23. Nxe4 {[%emt 0:29:54]} Rd4 24. Nd2 {[%emt 0:29:54]} b5 {[%emt 0:24:45]} 25. Nf3 {[%emt 0:22:20]} Rd7 26. cxb5 {[%emt 0:22:20]} Bxb3 {[%emt 0:46:53]} 27. bxc6 {[%emt 0:13:52]} Rd6 28. Kb2 {[%emt 0:44:24]} Bxa4 {[%emt 0:13:06]} 29. Nxe5 {[%emt 0:43:25]} fxe5 {[%emt 0:11:32]} 30. Rf7+ {[%emt 0:11:32]} Kxc6 {[%emt 0:10:52]} 31. Rc1+ {[%emt 0:10:52]} Kb6 {[%emt 0:10:18]} 32. Rxg7 {[%emt 0:10:18]} Bc6 {[%emt 0:08:38]} 33. Ka3 {[%emt 0:06:51]} Rg6 34. Rxh7 {[%emt 0:06:36]} Rg3+ 35. Kb2 {[%emt 0:06:36]} Rxg2 36. Rc2 {[%emt 0:05:31]} Be4 {[%emt 0:26:32]} 37. Rh6+ {[%emt 0:04:31]} Rg6 {[%emt 0:25:29]} 38. Rxg6+ {[%emt 0:25:29]} Bxg6 {[%emt 0:04:26]} 39. Rc3 {[%emt 0:25:05]} Rd8 {[%emt 0:25:05]} 40. Re3 {[%emt 0:24:17]} e4 {[%emt 0:02:07]} 41. Kc3 {[%emt 0:02:07]} Rh8 {[%emt 0:01:10]} 42. Kd4 {[%emt 0:01:10]} a4 {[%emt 0:51:54]} 43. Ke5 {[%emt 0:26:49]} Ra8 {[%emt 0:24:48]} 44. Rg3 {[%emt 0:49:56]} Bh7 {[%emt 0:24:08]} 45. Kd6 {[%emt 0:48:44]} Kb5 {[%emt 0:48:44]} 46. Rg7 {[%emt 0:48:06]} a3 {[%emt 0:21:00]} 47. Rb7+ {[%emt 0:44:15]} Kc4 {[%emt 0:44:15]} 48. Rxh7 {[%emt 0:42:39]} a2 {[%emt 0:19:45]} 49. Rc7+ {[%emt 0:42:14]} Kd4 {[%emt 0:19:31]} 0-1

[Event "30th NATO Chess-ch 2019"]
[Site "Berlin"]
[Date "2019.09.14"]
[Round "1.8"]
[White "Wantiez, Fabrice"]
[Black "Drenthen, Arjan"]
[Result "1-0"]
[ECO "C43"]
[WhiteElo "2225"]
[BlackElo "1917"]
[Annotator "NA"]
[PlyCount "125"]
[EventDate "2019.09.16"]
[EventType "swiss"]
[EventCountry "GER"]
[SourceTitle "playchess.com"]
[Source "ChessBase"]
[SourceQuality "1"]
[TimeControl "40/7200:1800"]

1. e4 {[%emt 1:59:53]} e5 {[%emt 1:59:53]} 2. Nf3 {[%emt 1:59:53]} Nf6 {[%emt 1:59:47]} 3. d4 {[%emt 1:59:47]} Nxe4 {[%emt 1:59:39]} 4. Bd3 {[%emt 1:59:42]} Nc6 {[%emt 1:59:37]} 5. d5 {[%emt 1:59:37]} Nc5 {[%emt 1:59:24]} 6. dxc6 {[%emt 1:54:37]} e4 {[%emt 1:59:18]} 7. Bc4 {[%emt 1:50:10]} exf3 {[%emt 1:56:58]} 8. Qxf3 {[%emt 1:49:54]} Qe7+ {[%emt 1:55:20]} 9. Be3 {[%emt 1:55:20]} dxc6 10. O-O {[%emt 1:53:35]} Be6 {[%emt 1:50:02]} 11. Nd2 {[%emt 1:35:56]} Bxc4 {[%emt 1:35:56]} 12. Nxc4 {[%emt 1:43:09]} Qf6 {[%emt 1:35:11]} 13. Bxc5 {[%emt 1:31:36]} Qxf3 {[%emt 1:21:09]} 14. Rfe1+ {[%emt 1:21:09]} Kd8 {[%emt 1:20:54]} 15. gxf3 {[%emt 1:20:45]} Bxc5 {[%emt 1:20:45]} 16. Ne5 {[%emt 1:12:10]} Rf8 {[%emt 1:12:10]} 17. Rad1+ {[%emt 1:19:30]} Bd6 {[%emt 1:18:08]} 18. c4 {[%emt 1:10:07]} c5 {[%emt 1:10:07]} 19. b4 {[%emt 1:15:27]} b6 {[%emt 1:13:03]} 20. bxc5 {[%emt 1:08:22]} bxc5 {[%emt 1:12:57]} 21. Rd5 {[%emt 1:05:28]} Kc8 {[%emt 1:08:18]} 22. Nd3 {[%emt 1:04:08]} Rd8 {[%emt 1:04:08]} 23. Nxc5 {[%emt 1:02:40]} c6 {[%emt 1:00:38]} 24. Rf5 {[%emt 1:02:00]} Bxc5 {[%emt 0:51:03]} 25. Rxc5 {[%emt 1:01:54]} Kc7 {[%emt 1:01:54]} 26. Rg5 {[%emt 0:50:27]} g6 {[%emt 0:49:50]} 27. Ra5 {[%emt 0:58:51]} Kb6 {[%emt 0:44:18]} 28. Ra4 {[%emt 0:57:07]} Rd7 {[%emt 0:41:32]} 29. Rb1+ {[%emt 0:54:42]} Kc5 {[%emt 0:40:08]} 30. Ra5+ {[%emt 0:40:08]} Kd6 {[%emt 0:35:39]} 31. Kg2 {[%emt 0:35:39]} Rad8 {[%emt 0:34:43]} 32. Kg3 {[%emt 0:34:43]} Ke6 {[%emt 0:34:21]} 33. Rb3 {[%emt 0:45:46]} h6 {[%emt 0:29:53]} 34. Rba3 {[%emt 0:42:35]} Ra8 {[%emt 0:24:34]} 35. Ra6 {[%emt 0:40:00]} Kd6 {[%emt 0:23:23]} 36. c5+ {[%emt 0:36:37]} Kxc5 {[%emt 0:22:12]} 37. Rc3+ {[%emt 0:36:21]} Kd6 {[%emt 0:21:25]} 38. Rcxc6+ {[%emt 0:35:46]} Ke7 {[%emt 0:35:46]} 39. f4 {[%emt 0:34:56]} Rg8 {[%emt 0:18:42]} 40. Kf3 {[%emt 0:34:33]} h5 {[%emt 0:15:02]} 41. Rc5 {[%emt 0:33:52]} f6 {[%emt 0:33:52]} 42. Rcc6 {[%emt 0:13:24]} Rf8 {[%emt 0:12:51]} 43. Re6+ {[%emt 0:29:16]} Kd8 {[%emt 0:11:57]} 44. Rxf6 {[%emt 0:11:57]} Rxf6 {[%emt 0:10:07]} 45. Rxf6 {[%emt 0:29:01]} Rg7 {[%emt 0:29:01]} 46. Kg3 {[%emt 0:27:17]} g5 {[%emt 0:07:59]} 47. f5 {[%emt 0:27:05]} Rc7 {[%emt 0:06:00]} 48. Rg6 {[%emt 0:13:09]} Rc3+ {[%emt 0:04:09]} 49. Kg2 {[%emt 0:04:09]} g4 {[%emt 0:00:22]} 50. Rg5 {[%emt 0:06:46]} Ra3 {[%emt 0:36:46]} 51. Rxh5 {[%emt 0:36:40]} Rxa2 {[%emt 0:25:59]} 52. Rg5 {[%emt 0:25:59]} Ra4 {[%emt 0:36:36]} 53. Kg3 {[%emt 0:36:22]} a5 {[%emt 0:36:22]} 54. Rg7 {[%emt 0:24:57]} Ra1 {[%emt 0:34:16]} 55. f6 {[%emt 0:21:14]} Ke8 {[%emt 0:20:57]} 56. Re7+ {[%emt 0:20:57]} Kf8 {[%emt 0:20:11]} 57. Ra7 {[%emt 0:28:54]} Ra2 {[%emt 0:28:54]} 58. Kf4 {[%emt 0:27:35]} Rxf2+ {[%emt 0:12:15]} 59. Kg5 {[%emt 0:27:29]} Rxh2 {[%emt 0:10:24]} 60. Kg6 {[%emt 0:10:24]} Re2 {[%emt 0:09:57]} 61. Ra8+ {[%emt 0:26:20]} Re8 {[%emt 0:09:43]} 62. Rxe8+ {[%emt 0:26:08]} Kxe8 {[%emt 0:09:24]} 63. Kg7 {[%emt 0:09:24]} 1-0